bitfinex/quotes_ETHUSD_20241009
["timestamp","ask_amount","ask_price","bid_price","bid_amount"]
[1728483243347,4.2246898,2436.4,2436.3,0.008]
[1728483246223,0.1202798,2436.4,2436.3,0.008]
[1728483247330,0.1202798,2436.4,2436.3,4.11258]
[1728483248055,0.1202798,2436.4,2436.3,0.008]
[1728483248937,0.1202798,2436.4,2436.3,4.91428]
[1728483249360,0.1202798,2436.4,2436.3,0.8097]
[1728483250347,0.1202798,2436.4,2436.3,1.3597]
[1728483250696,0.1202798,2436.4,2436.3,12.25410108]
[1728483251191,0.1202798,2436.4,2436.3,8.46428]
[1728483252354,0.1202798,2436.4,2436.3,1.3597]
[1728483252682,0.1202798,2436.4,2436.3,5.46428]
[1728483253193,0.1202798,2436.4,2436.3,5.54635442]
[1728483253357,0.1202798,2436.4,2436.3,5.46428]
[1728483253789,0.1202798,2436.4,2436.3,5.54635438]
[1728483254090,0.1202798,2436.4,2436.3,5.46428]
[1728483254395,0.1202798,2436.4,2436.3,5.54635438]
[1728483256081,0.1202798,2436.4,2436.3,9.33617546]
[1728483256289,0.1202798,2436.4,2436.3,12.25410108]
[1728483256457,0.1202798,2436.4,2436.3,12.86477357]
[1728483257055,0.1202798,2436.4,2436.3,14.88304536]
[1728483257294,0.1202798,2436.4,2436.3,13.17000025]
[1728483257663,0.1202798,2436.4,2436.3,12.86477357]
[1728483257909,0.1202798,2436.4,2436.3,5.52495249]
[1728483258195,0.1202798,2436.4,2436.3,0.008]
[1728483258492,4.2246898,2436.4,2436.3,0.008]
[1728483259889,0.1202798,2436.4,2436.3,0.008]
[1728483260107,0.1202798,2436.4,2436.3,4.66258]
[1728483260250,0.1202798,2436.4,2436.3,6.05324389]
[1728483262630,0.1202798,2436.4,2436.3,6.05328903]
[1728483264027,0.1202798,2436.4,2436.3,5.44228]
[1728483264336,0.1202798,2436.4,2436.3,0.008]
[1728483264506,4.9756898,2436.4,2436.3,0.008]
[1728483264690,5.88366678,2436.4,2436.3,0.008]
[1728483264881,1.77925678,2436.4,2436.3,0.008]
[1728483265419,0.8712798,2436.4,2436.3,0.008]
[1728483265932,0.1202798,2436.4,2436.3,0.008]
[1728483266522,0.1202798,2436.4,2436.3,4.11258]
[1728483267385,0.1202798,2436.4,2436.3,5.49796392]
[1728483268341,0.1202798,2436.4,2436.3,6.10962256]
[1728483269286,0.1202798,2436.4,2436.3,6.02753864]
[1728483269577,0.1202798,2436.4,2436.3,5.41588]
[1728483269876,0.1202798,2436.4,2436.3,5.49795701]
[1728483270234,0.1202798,2436.4,2436.3,5.41588]
[1728483270582,0.1202798,2436.4,2436.3,0.008]
[1728483273173,8.51560386,2436.4,2436.3,0.008]
[1728483273346,9.27120386,2436.4,2436.3,0.008]
[1728483273887,5.48138278,2436.4,2436.3,0.008]
[1728483274092,0.8758798,2436.4,2436.3,0.008]
[1728483274695,0.1202798,2436.4,2436.3,0.008]
[1728483276179,0.1202798,2436.4,2436.3,4.11258]
[1728483276482,0.1202798,2436.4,2436.3,0.008]
[1728483279854,0.1202798,2436.4,2436.3,4.93438]
[1728483280054,0.1202798,2436.4,2436.3,5.56646351]
[1728483280870,0.1202798,2436.4,2436.3,5.48438]
[1728483281767,0.1202798,2436.4,2436.3,0.008]
[1728483281965,4.2246898,2436.4,2436.3,0.008]
[1728483282174,0.1202798,2436.4,2436.3,0.008]
[1728483283109,4.2246898,2436.4,2436.3,0.008]
[1728483283395,0.1202798,2436.4,2436.3,0.008]
[1728483285496,4.2246898,2436.4,2436.3,0.008]
[1728483285809,0.1202798,2436.4,2436.3,0.008]
[1728483285962,4.2246898,2436.4,2436.3,0.008]
[1728483286396,0.1202798,2436.4,2436.3,0.008]
[1728483291181,4.2246898,2436.4,2436.3,0.008]
[1728483291572,0.1202798,2436.4,2436.3,0.008]
[1728483292107,4.2246898,2436.4,2436.3,0.008]
[1728483293368,0.1202798,2436.4,2436.3,0.008]
[1728483299908,1.03235378,2436.4,2436.3,0.008]
[1728483300089,5.13676378,2436.4,2436.3,0.008]
[1728483300284,1.03235378,2436.4,2436.3,0.008]
[1728483300591,0.1202798,2436.4,2436.3,0.008]
[1728483305190,0.1202798,2436.4,2436.3,4.11258]
[1728483305696,0.1202798,2436.4,2436.3,0.008]
[1728483307734,0.1202798,2436.4,2436.3,4.11258]
[1728483308029,0.1202798,2436.4,2436.3,0.008]
[1728483309001,0.1202798,2436.4,2436.3,0.7863]
[1728483310011,0.1202798,2436.4,2436.3,0.008]
[1728483310733,4.2246898,2436.4,2436.3,0.008]
[1728483311055,5.0417898,2436.4,2436.3,0.39197087]
[1728483311347,5.0417898,2436.4,2436.3,0.008]
[1728483311504,9.33538689,2436.4,2436.3,0.008]
[1728483313249,9.33538689,2436.4,2436.3,0.008]
[1728483316902,6.33538689,2436.4,2436.3,0.008]
[1728483317103,5.0417898,2436.4,2436.3,0.008]
[1728483317416,4.2246898,2436.4,2436.3,0.008]
[1728483317615,0.1202798,2436.4,2436.3,0.008]
[1728483318167,4.2246898,2436.4,2436.3,0.008]
[1728483318515,0.1202798,2436.4,2436.3,0.008]
[1728483319346,0.1202798,2436.4,2436.3,0.39122085]
[1728483319648,0.1202798,2436.4,2436.3,5.79790085]
[1728483319816,0.1202798,2436.4,2436.3,5.87998085]
[1728483320017,0.1202798,2436.4,2436.3,5.49676]
[1728483320601,0.1202798,2436.4,2436.3,5.87985424]
[1728483321616,0.1202798,2436.4,2436.3,8.87985424]
[1728483321957,0.1202798,2436.4,2436.3,9.10417674]
[1728483322313,0.1202798,2436.4,2436.3,8.79777424]
[1728483322946,0.1202798,2436.4,2436.3,4.69319424]
[1728483323329,0.1202798,2436.4,2436.3,5.41468]
[1728483323533,0.1202798,2436.4,2436.3,1.69310386]
[1728483324638,0.1202798,2436.4,2436.3,0.39100386]
[1728483324940,4.2246898,2436.4,2436.3,0.008]
[1728483325250,8.01451088,2436.4,2436.3,0.008]
[1728483325786,8.81941088,2436.4,2436.3,0.008]
[1728483325989,13.19363597,2436.4,2436.3,0.008]
[1728483326653,13.19363597,2436.4,2434.9,13.60323696]
[1728483326654,4.10639,2435.3,2435.0,0.38334044]
[1728483326856,4.10639,2435.3,2434.9,6.16323696]
[1728483326857,4.10643,2435.2,2435.1,0.38334044]
[1728483327039,7.48,2435.8,2435.1,0.38334044]
[1728483327040,4.10603,2435.5,2435.1,0.38334044]
[1728483327240,4.10576,2435.6,2435.1,4.10657]
[1728483327540,8.48813291,2435.8,2435.2,5.3831764]
[1728483327541,12.39064,2435.8,2435.2,5.3831764]
[1728483327746,3.0,2436.1,2435.4,4.106]
[1728483327747,4.10525,2435.9,2435.4,4.106]
[1728483327979,4.10544,2435.8,2435.3,4.90343]
[1728483328160,4.10525,2435.9,2435.4,0.38306041]
[1728483328365,4.10525,2435.9,2435.4,4.106]
[1728483328674,4.10525,2435.9,2435.5,0.55]
[1728483328875,4.10525,2435.9,2435.3,4.90343]
[1728483328876,0.69425639,2435.9,2435.3,0.7973]
[1728483329076,4.1061,2435.4,2435.2,5.0]
[1728483329279,4.10603,2435.5,2435.2,5.0]
[1728483329642,8.2121,2435.5,2435.2,5.0]
[1728483329878,4.10603,2435.5,2435.2,5.0]
[1728483330466,4.10573,2435.7,2435.2,5.0]
[1728483330800,8.21146,2435.7,2435.2,9.18848306]
[1728483330979,4.10576,2435.6,2435.2,5.0]
[1728483331482,4.10573,2435.7,2435.2,5.08212205]
[1728483331780,4.10573,2435.7,2435.2,9.18848205]
[1728483331984,8.21149,2435.7,2435.2,5.0]
[1728483332193,8.21149,2435.7,2435.2,5.08211948]
[1728483332549,4.10577,2435.6,2435.2,5.08211948]
[1728483332748,4.10487,2436.2,2435.5,4.10592]
[1728483332950,4.86124,2436.2,2436.1,0.004]
[1728483333370,8.65106108,2436.2,2436.1,0.004]
[1728483334598,4.86124,2436.2,2436.1,0.004]
[1728483335280,4.10484,2436.2,2436.1,0.004]
[1728483335481,4.10458,2436.3,2436.1,0.004]
[1728483336293,0.1202798,2436.4,2436.1,0.004]
[1728483336594,0.1202798,2436.4,2436.1,0.0860934]
[1728483336799,0.1202798,2436.4,2436.3,0.004]
[1728483336955,0.1202798,2436.4,2436.3,1.3791]
[1728483339208,0.1202798,2436.4,2436.3,0.008]
[1728483339368,4.2246898,2436.4,2436.3,0.008]
[1728483339573,5.51574689,2436.4,2436.3,0.008]
[1728483340468,0.1202798,2436.4,2436.3,0.008]
[1728483343281,0.1202798,2436.4,2436.3,4.66258]
[1728483343482,0.1202798,2436.4,2436.3,4.74466221]
[1728483344725,0.1202798,2436.4,2436.3,5.57196221]
[1728483345871,0.1202798,2436.4,2436.3,8.57196221]
[1728483346075,0.1202798,2436.4,2436.3,8.48988]
[1728483348718,0.1202798,2436.4,2436.3,12.27970108]
[1728483348931,0.1202798,2436.4,2436.3,12.99638835]
[1728483349216,4.10231,2437.7,2437.5,0.55]
[1728483349415,4.10231,2437.7,2437.6,0.008]
[1728483350129,4.85726,2437.8,2437.6,0.008]
[1728483350418,6.13215411,2437.8,2437.3,0.55]
[1728483350618,4.85726,2437.8,2437.7,0.008]
[1728483357983,4.10206,2437.8,2437.7,0.008]
[1728483359733,4.10196,2437.9,2437.7,0.008]
[1728483360389,8.204,2437.9,2437.7,0.008]
[1728483360586,8.20399,2437.9,2437.7,0.008]
[1728483360846,4.10205,2437.8,2437.7,0.008]
[1728483361129,0.20424433,2438.1,2437.7,0.008]
[1728483361339,0.8222,2438.6,2437.9,0.55]
[1728483361624,5.12707421,2438.6,2438.5,0.004]
[1728483361789,6.44084872,2438.6,2438.5,0.008]
[1728483368632,5.12707421,2438.6,2438.5,0.008]
[1728483370164,4.10071,2438.6,2438.5,0.008]
[1728483372886,4.10058,2438.7,2438.5,0.008]
[1728483373184,4.10064,2438.7,2438.6,0.762]
[1728483373330,4.10071,2438.6,2438.5,0.008]
[1728483374383,4.95302405,2438.6,2438.5,0.008]
[1728483374576,4.10071,2438.6,2438.5,0.008]
[1728483375441,4.87211,2438.6,2438.5,0.008]
[1728483376653,4.10071,2438.6,2438.5,0.008]
[1728483377396,0.1202798,2438.8,2438.5,0.008]
[1728483377397,0.1202798,2438.8,2438.6,0.8128]
[1728483377582,0.1202798,2438.8,2438.7,0.554]
[1728483377779,0.1202798,2438.8,2438.7,0.558]
[1728483378285,0.1202798,2438.8,2438.7,0.63367388]
[1728483378581,0.1202798,2438.8,2438.7,1.3102]
[1728483380947,0.1202798,2438.8,2438.7,12.20056108]
[1728483381498,4.09793,2440.3,2439.9,1.3572]
[1728483381799,4.09785,2440.3,2440.2,0.004]
[1728483382089,4.09785,2440.3,2440.2,0.008]
[1728483383287,4.85165,2440.3,2440.2,0.008]
[1728483383955,7.09785,2440.3,2440.2,0.008]
[1728483384155,9.37055483,2440.3,2440.2,0.008]
[1728483389393,4.09982,2439.2,2438.9,0.8101]
[1728483389695,4.09943,2439.4,2438.9,5.8101]
[1728483389862,4.04943,2439.4,2438.9,5.8101]
[1728483390066,4.09961,2439.3,2438.9,5.8101]
[1728483390297,4.04943,2439.4,2438.9,5.8101]
[1728483390668,4.09948,2439.4,2438.9,5.8101]
[1728483390888,4.09968,2439.3,2438.9,5.8101]
[1728483391098,4.09988,2439.1,2438.9,5.8101]
[1728483391315,4.09968,2439.3,2438.9,5.8101]
[1728483391585,4.09977,2439.2,2438.9,5.8101]
[1728483391791,4.09991,2439.1,2438.9,5.8101]
[1728483392006,4.09977,2439.2,2438.9,5.8101]
[1728483392351,4.09977,2439.2,2438.9,0.8101]
[1728483392577,4.09987,2439.1,2438.9,0.8101]
[1728483392754,4.09973,2439.2,2438.7,0.0820042]
[1728483392955,4.09967,2439.3,2438.7,0.0820042]
[1728483392956,4.09967,2439.3,2439.1,0.004]
[1728483393202,4.09954,2439.3,2439.2,0.004]
[1728483393507,7.48,2439.8,2439.2,0.008]
[1728483393679,4.85259,2439.8,2439.7,0.004]
[1728483393990,4.09869,2439.8,2439.7,0.008]
[1728483394405,5.43872927,2440.2,2439.7,0.008]
[1728483394609,0.20050078,2439.9,2439.7,0.008]
[1728483394891,4.09869,2439.8,2439.7,0.008]
[1728483397894,4.09864,2439.9,2439.7,0.7795]
[1728483398102,4.09838,2440.0,2439.8,0.004]
[1728483398393,0.20811175,2440.1,2439.8,0.008]
[1728483398691,4.09826,2440.1,2440.0,0.008]
[1728483404402,7.87809779,2440.1,2440.0,0.008]
[1728483413821,8.69779779,2440.1,2440.0,0.008]
[1728483414028,11.69779779,2440.1,2440.0,0.008]
[1728483414849,0.778,2439.3,2438.4,6.19622266]
[1728483415144,3.77983779,2440.1,2438.4,6.19622266]
[1728483415145,4.10088,2438.5,2438.4,0.40632266]
[1728483415547,0.778,2438.8,2438.4,0.40632266]
[1728483415548,7.88033779,2438.8,2438.4,0.40632266]
[1728483415702,4.10074,2438.6,2438.4,0.40632266]
[1728483415904,4.10088,2438.5,2438.4,0.40632266]
[1728483416506,4.10116,2438.4,2438.1,5.7899]
[1728483416705,4.10123,2438.3,2438.1,5.7899]
[1728483417100,4.10123,2438.3,2438.1,0.7899]
[1728483417300,3.77983779,2438.4,2438.1,0.7899]
[1728483417541,4.10098,2438.5,2438.1,0.7899]
[1728483417926,4.10105,2438.4,2438.3,0.008]
[1728483418242,4.10098,2438.5,2438.3,0.008]
[1728483418626,4.1008,2438.6,2438.3,0.008]
[1728483419339,11.98076779,2438.8,2438.3,0.008]
[1728483419540,4.10071,2438.6,2438.3,0.008]
[1728483421539,7.88032779,2438.8,2438.3,0.008]
[1728483421745,4.10031,2438.9,2438.4,0.8012]
[1728483421959,4.10031,2438.9,2438.8,0.004]
[1728483422243,4.10031,2438.9,2438.8,0.008]
[1728483423516,0.20364118,2439.0,2438.9,0.7535]
[1728483423715,4.09939,2439.4,2438.9,0.7535]
[1728483424233,3.77983779,2439.5,2438.9,0.7535]
[1728483424234,4.10004,2439.0,2438.9,0.7535]
[1728483424438,4.1002,2438.9,2438.8,0.008]
[1728483426046,7.88003779,2438.9,2438.8,0.008]
[1728483427812,4.09988,2439.1,2438.8,0.008]
[1728483428013,4.09948,2439.4,2438.9,0.7821]
[1728483428312,4.09948,2439.4,2439.3,0.008]
[1728483429411,7.87931779,2439.4,2439.3,0.008]
[1728483430533,3.77983779,2439.8,2439.3,0.008]
[1728483430759,4.09936,2439.4,2439.3,0.008]
[1728483431047,4.09895,2439.7,2439.3,0.008]
[1728483431264,4.0991,2439.6,2439.3,0.008]
[1728483432160,8.08681745,2439.8,2439.3,0.008]
[1728483432334,4.09893,2439.7,2439.4,0.7762]
[1728483432535,4.09893,2439.7,2439.6,0.004]
[1728483432762,7.87865779,2439.8,2439.6,0.008]
[1728483432969,7.87865779,2439.8,2439.7,0.004]
[1728483433267,7.87865779,2439.8,2439.7,0.008]
[1728483434439,4.09854,2439.9,2439.7,0.008]
[1728483434644,4.09854,2439.9,2439.8,0.004]
[1728483434954,4.09854,2439.9,2439.8,0.008]
[1728483435157,3.77983779,2440.0,2439.8,0.008]
[1728483435360,4.09852,2439.9,2439.8,0.8095]
[1728483435867,4.09837,2440.0,2439.8,0.8095]
[1728483437241,8.19685,2440.0,2439.8,0.8095]
[1728483437428,7.87804779,2440.1,2439.8,0.8095]
[1728483437639,8.1965,2440.1,2439.8,0.8095]
[1728483437854,4.09837,2440.0,2439.8,0.8095]
[1728483438172,4.09852,2439.9,2439.8,0.8095]
[1728483439144,7.87835779,2439.9,2439.8,0.008]
[1728483440937,9.07602957,2439.9,2439.8,0.008]
[1728483442248,12.85232957,2439.9,2439.8,0.008]
[1728483443782,7.87835779,2439.9,2439.8,0.008]
[1728483443983,4.09852,2439.9,2439.8,0.008]
[1728483444186,7.87835779,2439.9,2439.8,0.008]
[1728483446880,4.09852,2439.9,2439.8,0.008]
[1728483448295,4.09827,2440.1,2439.9,0.8215]
[1728483448454,4.09827,2440.1,2440.0,0.004]
[1728483448666,4.09827,2440.1,2440.0,0.008]
[1728483459012,4.09827,2440.1,2440.0,0.569709]
[1728483459655,4.09701,2440.9,2440.0,0.569709]
[1728483459656,0.8123,2441.0,2440.1,0.8247]
[1728483460000,4.09681,2441.0,2440.9,0.008]
[1728483460280,7.87664779,2441.0,2440.9,0.008]
[1728483460479,9.10649029,2441.0,2440.9,0.008]
[1728483460650,9.91879029,2441.0,2440.9,0.008]
[1728483462970,12.91879029,2441.0,2440.9,0.008]
[1728483472076,9.10649029,2441.0,2440.9,0.008]
[1728483472283,7.87664779,2441.0,2440.9,0.008]
[1728483478018,8.70254779,2441.0,2440.9,0.008]
[1728483478378,11.70254779,2441.0,2440.9,0.008]
[1728483481816,7.92271,2441.0,2440.9,0.008]
[1728483482021,11.70254779,2441.0,2440.9,0.008]
[1728483482181,12.48908029,2441.0,2440.9,0.008]
[1728483482383,10.87664779,2441.0,2440.9,0.008]
[1728483483330,11.69304779,2441.0,2440.9,0.008]
[1728483485418,7.87664779,2441.0,2440.9,0.008]
[1728483486317,11.67104779,2441.0,2440.9,0.008]
[1728483493903,4.09785,2440.3,2440.2,0.7841]
[1728483494219,7.87768779,2440.3,2440.2,0.7841]
[1728483495440,4.09819,2440.1,2440.0,1.372009]
[1728483495649,7.87802779,2440.1,2440.0,1.372009]
[1728483495945,7.87802779,2440.1,2440.0,0.561709]
[1728483496093,7.87802779,2440.1,2440.0,0.539409]
[1728483496443,9.48542157,2440.1,2440.0,0.539409]
[1728483496595,4.09819,2440.1,2440.0,0.539409]
[1728483496795,4.09819,2440.1,2440.0,1.14899325]
[1728483497136,4.09812,2440.2,2440.0,1.90599325]
[1728483497452,4.09788,2440.3,2440.1,0.60958425]
[1728483497652,4.09788,2440.3,2440.0,1.300409]
[1728483497851,4.09788,2440.3,2440.2,0.008]
[1728483498172,4.09788,2440.3,2440.2,0.61737616]
[1728483498326,4.09788,2440.3,2440.2,0.61747305]
[1728483499718,9.07525857,2440.3,2440.2,0.61747305]
[1728483499922,9.07525857,2440.3,2440.2,0.008]
[1728483501059,12.07525857,2440.3,2440.2,0.008]
[1728483502254,10.87771779,2440.3,2440.2,0.008]
[1728483503361,11.68721779,2440.3,2440.2,0.008]
[1728483503949,11.68721779,2440.3,2440.2,0.38927276]
[1728483504923,11.68721779,2440.3,2440.2,0.008]
[1728483505337,10.87771779,2440.3,2440.2,0.38929817]
[1728483505574,11.85473819,2440.3,2440.2,0.008]
[1728483507670,11.85473819,2440.3,2440.2,0.38938407]
[1728483507671,10.87771779,2440.3,2440.2,0.38938407]
[1728483507830,7.87771779,2440.3,2440.2,0.38936054]
[1728483508166,4.09788,2440.3,2440.2,1.14606054]
[1728483508387,4.09788,2440.3,2440.2,1.75619221]
[1728483508531,7.87771779,2440.3,2440.2,1.75619221]
[1728483508732,7.87771779,2440.3,2440.2,1.14606054]
[1728483508932,7.87771779,2440.3,2440.2,1.75621113]
[1728483509132,7.87771779,2440.3,2440.2,1.14606054]
[1728483509540,7.87771779,2440.3,2440.2,1.14602158]
[1728483510481,4.09785,2440.3,2440.2,1.75594235]
[1728483512916,4.09762,2440.5,2440.2,1.75594235]
[1728483513062,4.09762,2440.5,2440.4,0.8151]
[1728483513258,4.09762,2440.5,2440.4,1.81434235]
[1728483513597,4.09762,2440.5,2440.4,1.81380314]
[1728483515896,4.09743,2440.6,2440.4,1.81380314]
[1728483516103,4.09743,2440.6,2440.5,0.99070314]
[1728483517361,5.31560901,2440.6,2440.5,0.38103967]
[1728483517570,5.31560901,2440.6,2440.4,0.008]
[1728483517799,7.87735779,2440.5,2440.4,0.008]
[1728483518606,7.87735779,2440.5,2440.4,0.38911156]
[1728483521020,4.09752,2440.5,2440.4,1.19948101]
[1728483521483,4.09752,2440.5,2440.4,1.8089293]
[1728483521679,4.09752,2440.5,2440.4,1.19948101]
[1728483524623,4.09752,2440.5,2440.4,1.19950394]
[1728483525127,4.09739,2440.6,2440.4,1.19950394]
[1728483525291,4.09687,2440.9,2440.4,1.19950394]
[1728483525493,0.8069,2441.0,2440.4,1.19950394]
[1728483525494,3.77983779,2441.0,2440.7,0.7543]
[1728483525726,7.87664779,2441.0,2440.9,0.008]
[1728483525928,7.87664779,2441.0,2440.9,0.38890394]
[1728483526630,9.08599555,2441.0,2440.9,0.38890394]
[1728483526854,9.08599555,2441.0,2440.9,0.008]
[1728483530934,16.64993334,2441.0,2440.9,0.008]
[1728483531141,4.09768,2440.4,2440.3,0.7782]
[1728483531425,4.09768,2440.4,2440.1,0.7615]
[1728483531426,4.09807,2440.2,2440.1,0.7615]
[1728483531611,4.09807,2440.2,2440.0,0.539409]
[1728483531733,4.09819,2440.1,2440.0,0.539409]
[1728483532663,7.87802779,2440.1,2440.0,0.539409]
[1728483533448,3.77983779,2440.1,2439.2,0.7564]
[1728483533754,4.09953,2439.3,2439.2,0.7564]
[1728483533973,7.87921779,2439.4,2439.2,1.7471156]
[1728483534287,7.87921779,2439.4,2439.2,0.7564]
[1728483534288,4.09953,2439.3,2439.2,0.7564]
[1728483534631,4.09987,2439.1,2439.0,5.8083]
[1728483534871,7.87970779,2439.1,2439.0,0.004]
[1728483535085,7.87970779,2439.1,2439.0,0.008]
[1728483535534,3.77983779,2439.1,2439.0,0.008]
[1728483537137,11.97903779,2439.3,2439.0,0.008]
[1728483537438,7.87939779,2439.3,2439.0,0.008]
[1728483537990,4.09934,2439.5,2439.1,0.8333]
[1728483537991,4.09939,2439.4,2439.1,0.8333]
[1728483538143,4.09939,2439.4,2439.3,0.004]
[1728483538349,4.09939,2439.4,2439.3,0.008]
[1728483541283,3.77983779,2439.5,2439.3,0.008]
[1728483541445,3.77983779,2439.5,2439.4,0.7654]
[1728483542258,7.87903779,2439.5,2439.4,0.7654]
[1728483545254,4.09936,2439.4,2439.3,0.008]
[1728483548404,7.87903779,2439.5,2439.3,0.008]
[1728483548709,7.87903779,2439.5,2439.4,0.7589]
[1728483548869,7.87903779,2439.5,2439.3,0.008]
[1728483549071,4.09936,2439.4,2439.3,0.008]
[1728483550306,7.87905779,2439.5,2439.3,0.008]
[1728483550801,0.20588331,2439.9,2439.3,0.008]
[1728483550802,7.87870779,2439.7,2439.3,5.008]
[1728483551013,4.09904,2439.6,2439.3,5.08198627]
[1728483551303,8.1982,2439.6,2439.3,5.08198627]
[1728483551510,3.77983779,2439.5,2439.3,5.08198627]
[1728483553371,7.87870779,2439.7,2439.3,5.08198627]
[1728483553806,4.09883,2439.8,2439.5,0.8042]
[1728483554003,4.09883,2439.8,2439.7,0.004]
[1728483554213,4.09883,2439.8,2439.7,0.008]
[1728483554572,7.87805779,2440.1,2439.8,0.8232]
[1728483554787,7.87805779,2440.1,2440.0,0.008]
[1728483556308,9.09621614,2440.1,2440.0,0.008]
[1728483556603,9.86221614,2440.1,2440.0,0.008]
[1728483559907,12.86221614,2440.1,2440.0,0.008]
[1728483564825,12.86221614,2440.1,2440.0,0.008]
[1728483566234,7.87805779,2440.1,2440.0,0.008]
[1728483567491,7.87805779,2440.1,2440.0,0.7854]
[1728483570592,4.09768,2440.5,2440.2,0.8276]
[1728483570792,4.09768,2440.5,2440.4,0.004]
[1728483571125,4.09768,2440.5,2440.4,0.008]
[1728483572395,4.09768,2440.5,2440.4,0.7816]
[1728483572599,7.87751779,2440.5,2440.4,0.7816]
[1728483574419,4.09735,2440.6,2440.4,0.7816]
[1728483574733,7.87735779,2440.5,2440.4,0.7816]
[1728483574933,4.09717,2440.8,2440.4,0.7816]
[1728483575103,4.09735,2440.6,2440.4,0.7816]
[1728483575438,4.09735,2440.6,2440.4,1.3316]
[1728483575439,7.87735779,2440.5,2440.4,1.3316]
[1728483575931,7.87735779,2440.5,2440.4,0.7816]
[1728483578648,7.87735779,2440.5,2440.4,0.008]
[1728483583864,4.09752,2440.5,2440.4,0.7585]
[1728483585065,4.09752,2440.5,2440.4,0.008]
[1728483586228,4.09752,2440.5,2440.4,0.8127]
[1728483587356,7.87720779,2440.6,2440.4,0.8127]
[1728483587672,4.09729,2440.7,2440.4,0.8127]
[1728483587893,7.87699779,2440.8,2440.6,0.7571]
[1728483587894,4.09705,2440.8,2440.6,0.7571]
[1728483588111,4.09705,2440.8,2440.7,0.004]
[1728483588112,7.87688779,2440.8,2440.7,0.004]
[1728483588411,3.77983779,2440.8,2440.7,0.008]
[1728483588907,7.87684779,2440.8,2440.7,0.008]
[1728483596106,9.15532757,2440.8,2440.7,0.008]
[1728483596960,7.87684779,2440.8,2440.7,0.008]
[1728483605210,8.63854779,2440.8,2440.7,0.008]
[1728483607807,7.87684779,2440.8,2440.7,0.008]
[1728483610634,7.88084779,2440.8,2440.7,0.008]
[1728483612936,8.67654779,2440.8,2440.7,0.008]
[1728483613234,9.95388757,2440.8,2440.7,0.008]
[1728483614607,9.95788757,2440.8,2440.7,0.008]
[1728483620503,7.88484779,2440.8,2440.7,0.008]
[1728483623115,0.008,2440.8,2440.7,0.008]
[1728483623428,4.10501,2440.8,2440.7,0.8091]
[1728483624003,7.88484779,2440.8,2440.7,0.8091]
[1728483625054,0.004,2440.8,2440.7,0.8091]
[1728483625218,4.09691,2440.9,2440.7,0.8091]
[1728483625827,7.87684779,2440.8,2440.7,0.8091]
[1728483627644,4.09687,2440.9,2440.7,0.8091]
[1728483628268,4.09701,2440.8,2440.7,0.8091]
[1728483628932,4.09689,2440.9,2440.7,0.8091]
[1728483630135,0.008,2441.0,2440.7,5.8091]
[1728483630371,0.008,2441.0,2440.9,0.004]
[1728483630660,0.008,2441.0,2440.9,8.67430345]
[1728483630866,0.008,2441.0,2440.9,7.91454]
[1728483630867,0.004,2441.0,2440.9,7.91454]
[1728483631154,0.004,2441.0,2440.9,10.12533376]
[1728483631326,0.004,2441.0,2440.9,10.04364814]
[1728483631837,0.1202798,2441.2,2441.1,5.0]
[1728483632455,0.1202798,2441.2,2441.1,5.55]
[1728483632832,0.1202798,2441.2,2441.1,5.0]
[1728483633936,0.1202798,2441.2,2441.1,5.55]
[1728483634120,0.1202798,2441.2,2441.1,10.54673083]
[1728483634320,0.1202798,2441.2,2441.1,10.46481]
[1728483635539,0.1202798,2441.2,2441.1,6.3683]
[1728483636121,0.1202798,2441.2,2441.1,10.46481]
[1728483637162,0.1202798,2441.2,2441.1,13.46481]
[1728483645227,0.1202798,2441.2,2441.1,9.3683]
[1728483645873,0.1202798,2441.2,2441.1,6.3683]
[1728483646180,0.1202798,2441.2,2441.1,10.54672143]
[1728483646478,0.1202798,2441.2,2441.1,10.46481]
[1728483650396,0.1202798,2441.2,2441.1,6.3683]
[1728483654279,0.1202798,2441.2,2441.1,5.0]
[1728483654484,0.1202798,2441.2,2441.1,5.55]
[1728483656428,0.8863798,2441.2,2440.9,0.008]
[1728483656646,8.64261779,2441.0,2440.9,0.008]
[1728483657933,4.09653,2441.1,2440.9,0.008]
[1728483658132,3.90011759,2441.2,2441.1,0.008]
[1728483658322,3.90411759,2441.2,2441.1,0.008]
[1728483658521,8.76655759,2441.2,2441.1,0.008]
[1728483658723,10.05684535,2441.2,2441.1,0.008]
[1728483660450,4.67421759,2441.2,2441.1,0.008]
[1728483660757,3.90011759,2441.2,2441.1,0.008]
[1728483661639,7.99645759,2441.2,2441.1,0.008]
[1728483661936,8.79835759,2441.2,2441.1,0.008]
[1728483662727,8.80635759,2441.2,2441.1,0.008]
[1728483662994,10.09661235,2441.2,2441.1,0.008]
[1728483663177,8.80235759,2441.2,2441.1,0.008]
[1728483663471,3.90011759,2441.2,2441.1,0.008]
[1728483663644,0.1202798,2441.2,2441.1,0.008]
[1728483663865,3.90011759,2441.2,2441.1,0.008]
[1728483665479,0.1202798,2441.2,2441.1,0.008]
[1728483665780,0.1202798,2441.2,2441.1,4.10451]
[1728483665945,0.1202798,2441.2,2441.1,4.65451]
[1728483666628,0.1202798,2441.2,2441.1,0.558]
[1728483667811,0.1202798,2441.2,2441.1,4.65451]
[1728483669306,0.1202798,2441.2,2441.1,0.558]
[1728483669508,0.1202798,2441.2,2441.1,4.65451]
[1728483669870,0.1202798,2441.2,2441.1,0.558]
[1728483670073,0.1202798,2441.2,2441.1,0.008]
[1728483670074,3.90011759,2441.2,2441.1,0.008]
[1728483670271,0.1202798,2441.2,2441.1,0.008]